bitfinex/quotes_BTCUSD_20250423
["timestamp","ask_amount","ask_price","bid_price","bid_amount"]
[1745407753881,0.69610437,93561.0,93560.0,0.00204658]
[1745407755045,0.74450437,93561.0,93560.0,0.00204658]
[1745407755657,0.74150437,93561.0,93560.0,0.00104658]
[1745407756233,0.73750437,93561.0,93560.0,4.658e-05]
[1745407756503,0.83404686,93561.0,93560.0,0.00104658]
[1745407756927,0.83404686,93561.0,93560.0,0.00204658]
[1745407757142,0.83704686,93561.0,93560.0,0.00204658]
[1745407757329,0.83404686,93561.0,93560.0,0.00104658]
[1745407757539,0.83104686,93561.0,93560.0,4.658e-05]
[1745407757737,0.84104686,93561.0,93560.0,0.00204658]
[1745407757946,0.83604686,93561.0,93560.0,0.00104658]
[1745407759429,0.85103453,93561.0,93560.0,0.00204658]
[1745407759620,0.01454085,93552.0,93551.0,0.002]
[1745407759847,0.12143099,93552.0,93551.0,0.00246607]
[1745407760031,0.12640276,93552.0,93551.0,0.00246607]
[1745407760834,0.22200276,93552.0,93551.0,0.00246607]
[1745407761039,0.22200276,93552.0,93551.0,0.00346607]
[1745407761040,0.22500276,93552.0,93551.0,0.00346607]
[1745407761262,0.4118583,93552.0,93551.0,0.00346607]
[1745407761624,0.4158583,93552.0,93551.0,0.00446607]
[1745407762062,0.4118583,93552.0,93551.0,0.00346607]
[1745407762268,0.4088583,93552.0,93551.0,0.00246607]
[1745407762469,0.4128583,93552.0,93551.0,0.00346607]
[1745407762733,0.4148583,93552.0,93551.0,0.00346607]
[1745407763513,0.4128583,93552.0,93551.0,0.00346607]
[1745407763717,0.4118583,93552.0,93551.0,0.00246607]
[1745407764040,0.4098583,93552.0,93551.0,0.00246607]
[1745407764433,0.4138583,93552.0,93551.0,0.00246607]
[1745407764820,0.4128583,93552.0,93551.0,0.00246607]
[1745407765176,0.4168583,93552.0,93551.0,0.00246607]
[1745407765321,0.4203274,93549.0,93548.0,0.0008502]
[1745407765534,0.66007052,93549.0,93548.0,0.0008502]
[1745407765970,0.72409052,93549.0,93548.0,0.0008502]
[1745407766507,0.58511195,93549.0,93548.0,0.0008502]
[1745407766722,0.58111195,93549.0,93548.0,0.0008502]
[1745407767166,0.58611195,93549.0,93548.0,0.0008502]
[1745407767849,0.59011195,93549.0,93548.0,0.0008502]
[1745407768273,0.58611195,93549.0,93548.0,0.0008502]
[1745407768482,0.66725515,93549.0,93548.0,0.0008502]
[1745407768734,0.66625515,93549.0,93548.0,0.0008502]
[1745407769137,0.01454085,93548.0,93530.0,0.17743631]
[1745407769332,0.12143099,93531.0,93530.0,0.17743631]
[1745407769543,0.01454085,93530.0,93520.0,0.35487262]
[1745407769694,0.01454085,93524.0,93520.0,0.35487262]
[1745407769903,0.01454085,93522.0,93519.0,0.0477]
[1745407770104,0.01454085,93520.0,93519.0,0.0477]
[1745407770305,0.12709512,93520.0,93519.0,0.0477]
[1745407770517,0.12709512,93520.0,93519.0,0.0487]
[1745407770780,0.21207427,93520.0,93519.0,0.0967]
[1745407770945,0.10518413,93520.0,93519.0,0.0977]
[1745407771372,0.10518413,93520.0,93519.0,0.09783967]
[1745407771577,0.09952,93520.0,93519.0,0.42493567]
[1745407771983,0.10052,93520.0,93519.0,0.09783967]
[1745407772284,0.10722522,93520.0,93519.0,0.09783967]
[1745407772517,0.22865621,93520.0,93519.0,0.04913967]
[1745407772720,0.22865621,93520.0,93519.0,0.00113967]
[1745407773947,0.22865621,93520.0,93510.0,0.22596161]
[1745407774162,0.01454085,93518.0,93511.0,0.00204657]
[1745407774368,0.01454085,93516.0,93511.0,0.00204657]
[1745407774573,0.01454085,93514.0,93511.0,0.00204657]
[1745407774782,0.01454085,93512.0,93511.0,0.00204657]
[1745407774991,0.12143099,93512.0,93511.0,0.00204657]
[1745407775205,0.12713373,93512.0,93511.0,0.00204657]
[1745407776276,0.12813373,93512.0,93511.0,0.00204657]
[1745407777370,0.12913373,93512.0,93511.0,0.00204657]
[1745407779143,0.12813373,93512.0,93511.0,0.00204657]
[1745407779378,0.12713373,93512.0,93511.0,0.00204657]
[1745407779855,0.12913373,93512.0,93511.0,0.00204657]
[1745407780255,0.12713373,93512.0,93511.0,0.00204657]
[1745407780469,0.12913373,93512.0,93511.0,0.00204657]
[1745407788366,0.12913373,93512.0,93510.0,0.0004253]
[1745407788573,0.01454085,93510.0,93502.0,0.05835004]
[1745407788774,0.01454085,93508.0,93502.0,0.05848993]
[1745407789006,0.01454085,93506.0,93502.0,0.05848993]
[1745407789212,0.01454085,93504.0,93502.0,0.00013989]
[1745407789430,0.12143099,93503.0,93502.0,0.00013989]
[1745407789645,0.12692195,93503.0,93502.0,0.00013989]
[1745407791709,0.12792195,93503.0,93502.0,0.00013989]
[1745407792098,0.12992195,93503.0,93502.0,0.00013989]
[1745407792913,0.12992195,93503.0,93499.0,0.0475]
[1745407792914,0.03440096,93500.0,93499.0,0.0475]
[1745407793115,0.14678113,93500.0,93499.0,0.0475]
[1745407794963,0.01454085,93499.0,93496.0,0.27122793]
[1745407795165,0.01454085,93499.0,93491.0,0.1007]
[1745407795166,0.01454085,93497.0,93491.0,0.1007]
[1745407795474,0.01454085,93495.0,93491.0,0.1007]
[1745407795680,0.01454085,93493.0,93491.0,0.1007]
[1745407795813,0.0200287,93493.0,93491.0,0.1007]
[1745407797111,0.0220287,93493.0,93491.0,0.1007]
[1745407798299,0.0200287,93493.0,93491.0,0.1007]
[1745407798592,0.0230287,93493.0,93491.0,0.1007]
[1745407799045,0.0200287,93493.0,93491.0,0.1007]
[1745407799232,0.0210287,93493.0,93491.0,0.1007]
[1745407799403,0.0230287,93493.0,93491.0,0.1007]
[1745407801083,0.0230287,93493.0,93492.0,0.4822912]
[1745407801331,0.0230287,93493.0,93492.0,0.2010582]
[1745407802208,0.00848785,93493.0,93492.0,0.2010582]
[1745407803814,0.00848785,93493.0,93492.0,0.1593642]
[1745407804019,0.00848785,93493.0,93492.0,0.0008502]
[1745407805191,0.12991884,93493.0,93492.0,0.0008502]
[1745407807160,0.22927884,93493.0,93492.0,0.0008502]
[1745407807573,0.22727884,93493.0,93492.0,0.0008502]
[1745407807989,0.22827884,93493.0,93492.0,0.0008502]
[1745407808220,0.22727884,93493.0,93492.0,0.0008502]
[1745407808850,0.22827884,93493.0,93492.0,0.0008502]
[1745407809275,0.12891884,93493.0,93492.0,0.0008502]
[1745407809479,0.22827884,93493.0,93492.0,0.0008502]
[1745407809699,0.22042029,93493.0,93492.0,0.8257422]
[1745407809911,0.002,93493.0,93492.0,0.8353422]
[1745407810137,0.10136,93493.0,93492.0,0.8809422]
[1745407810335,0.10136,93493.0,93492.0,0.8160742]
[1745407810537,0.10136,93493.0,93492.0,0.3385082]
[1745407810745,0.10136,93493.0,93492.0,0.2936692]
[1745407812855,0.002,93493.0,93492.0,0.2936692]
[1745407813008,0.10136,93493.0,93492.0,0.2936692]
[1745407816766,0.10136,93493.0,93492.0,0.0518502]
[1745407816966,0.10136,93493.0,93492.0,0.05063773]
[1745407817445,0.10136,93493.0,93492.0,0.001]
[1745407817654,0.10136,93493.0,93492.0,0.05063773]
[1745407818074,0.09756179,93493.0,93492.0,0.05063773]
[1745407818242,0.20545193,93493.0,93492.0,0.04963773]
[1745407818408,0.21999278,93493.0,93492.0,0.04963773]
[1745407818811,0.01454085,93492.0,93491.0,0.05163773]
[1745407819085,0.12143099,93492.0,93491.0,0.05163773]
[1745407819489,0.12143099,93492.0,93491.0,0.002]
[1745407820586,0.22179099,93492.0,93491.0,0.002]
[1745407820816,0.22079099,93492.0,93491.0,0.002]
[1745407821017,0.22179099,93492.0,93491.0,0.002]
[1745407821233,0.22279099,93492.0,93491.0,0.002]
[1745407821447,0.22179099,93492.0,93491.0,0.002]
[1745407821957,0.22279099,93492.0,93491.0,0.002]
[1745407823293,0.22179099,93492.0,93491.0,0.002]
[1745407823645,0.22279099,93492.0,93491.0,0.002]
[1745407825964,0.27019099,93492.0,93491.0,0.002]
[1745407826893,0.26919099,93492.0,93491.0,0.002]
[1745407827256,0.27019099,93492.0,93491.0,0.002]
[1745407827454,0.26919099,93492.0,93491.0,0.002]
[1745407827655,0.26819099,93492.0,93491.0,0.002]
[1745407827868,0.27019099,93492.0,93491.0,0.002]
[1745407828461,0.26919099,93492.0,93491.0,0.002]
[1745407829289,0.26819099,93492.0,93491.0,0.002]
[1745407829502,0.26919099,93492.0,93491.0,0.002]
[1745407829713,0.27019099,93492.0,93491.0,0.002]
[1745407829920,0.26919099,93492.0,93491.0,0.002]
[1745407830074,0.26819099,93492.0,93491.0,0.002]
[1745407830267,0.27019099,93492.0,93491.0,0.002]
[1745407830859,0.27119099,93492.0,93491.0,0.002]
[1745407831675,0.17183099,93492.0,93491.0,0.002]
[1745407831885,0.27119099,93492.0,93491.0,0.002]
[1745407832508,0.22379099,93492.0,93491.0,0.002]
[1745407832930,0.12443099,93492.0,93491.0,0.002]
[1745407833139,0.22379099,93492.0,93491.0,0.002]
[1745407834097,0.12443099,93492.0,93491.0,0.002]
[1745407834332,0.22371099,93492.0,93491.0,0.002]
[1745407839785,0.22271099,93492.0,93491.0,0.002]
[1745407840345,0.22371099,93492.0,93491.0,0.002]
[1745407840637,0.12443099,93492.0,93491.0,0.002]
[1745407840851,0.003,93492.0,93491.0,0.003]
[1745407841062,0.10228,93492.0,93491.0,0.003]
[1745407841470,0.10228,93492.0,93491.0,0.002]
[1745407841471,0.22371099,93492.0,93491.0,0.002]
[1745407842103,0.22342755,93492.0,93491.0,0.338492]
[1745407842299,0.22271099,93492.0,93491.0,0.002]
[1745407842529,0.22171099,93492.0,93491.0,0.002]
[1745407842740,0.22171099,93492.0,93491.0,0.481118]
[1745407842942,0.22271099,93492.0,93491.0,0.571363]
[1745407843098,0.22271099,93492.0,93491.0,0.571348]
[1745407843298,0.22171099,93492.0,93491.0,0.571348]
[1745407843547,0.22271099,93492.0,93491.0,0.571348]
[1745407843743,0.22171099,93492.0,93491.0,0.571348]
[1745407844105,0.22071099,93492.0,93491.0,0.571348]
[1745407844928,0.22171099,93492.0,93491.0,0.571348]
[1745407845132,0.22071099,93492.0,93491.0,0.571348]
[1745407845323,0.22171099,93492.0,93491.0,0.002]
[1745407845525,0.22271099,93492.0,93491.0,0.002]
[1745407845861,0.22171099,93492.0,93491.0,0.143236]
[1745407846059,0.22271099,93492.0,93491.0,0.332662]
[1745407846262,0.12414755,93492.0,93491.0,0.332662]
[1745407846464,0.22242755,93492.0,93491.0,0.24139]
[1745407846664,0.22342755,93492.0,93491.0,0.24139]
[1745407847308,0.22242755,93492.0,93491.0,0.24139]
[1745407847911,0.22242755,93492.0,93491.0,0.002]
[1745407848748,0.22342755,93492.0,93491.0,0.002]
[1745407849701,0.22242755,93492.0,93491.0,0.002]
[1745407850238,0.22342755,93492.0,93491.0,0.002]
[1745407850644,0.22242755,93492.0,93491.0,0.002]
[1745407851370,0.26912755,93492.0,93491.0,0.002]
[1745407851856,0.27112755,93492.0,93491.0,0.002]
[1745407852038,0.27012755,93492.0,93491.0,0.002]
[1745407852251,0.26912755,93492.0,93491.0,0.002]
[1745407852446,0.27112755,93492.0,93491.0,0.002]
[1745407852651,0.27012755,93492.0,93491.0,0.002]
[1745407853115,0.27112755,93492.0,93491.0,0.002]
[1745407853299,0.31892755,93492.0,93491.0,0.002]
[1745407853497,0.31792755,93492.0,93491.0,0.002]
[1745407853751,0.31692755,93492.0,93491.0,0.002]
[1745407854234,0.34862031,93492.0,93491.0,0.002]
[1745407854643,0.31692755,93492.0,93491.0,0.002]
[1745407854854,0.31792755,93492.0,93491.0,0.002]
[1745407855266,0.31692755,93492.0,93491.0,0.002]
[1745407855466,0.31792755,93492.0,93491.0,0.002]
[1745407856115,0.31892755,93492.0,93491.0,0.002]
[1745407856317,0.31692755,93492.0,93491.0,0.002]
[1745407856528,0.31892755,93492.0,93491.0,0.002]
[1745407857689,0.31792755,93492.0,93491.0,0.002]
[1745407857934,0.21864755,93492.0,93491.0,0.002]
[1745407858162,0.31792755,93492.0,93491.0,0.002]
[1745407858366,0.31892755,93492.0,93491.0,0.002]
[1745407858537,0.31692755,93492.0,93491.0,0.002]
[1745407858875,0.31892755,93492.0,93491.0,0.002]
[1745407859188,0.35082031,93492.0,93491.0,0.002]
[1745407859452,0.01454085,93491.0,93473.0,0.0004253]
[1745407859641,0.12143099,93474.0,93473.0,0.0004253]
[1745407859856,0.21383099,93474.0,93473.0,0.00056521]
[1745407860929,0.31311099,93474.0,93473.0,0.00056521]
[1745407861130,0.01454085,93473.0,93457.0,0.0004251]
[1745407861331,0.12143099,93472.0,93457.0,0.0004251]
[1745407861540,0.62501754,93472.0,93460.0,0.17803228]
[1745407862720,0.62701754,93472.0,93460.0,0.17803228]
[1745407863131,0.63001754,93472.0,93460.0,0.17803228]
[1745407863329,0.01454085,93471.0,93460.0,0.27163289]
[1745407863551,0.01454085,93466.0,93457.0,0.0004251]
[1745407863729,0.21583099,93462.0,93457.0,0.0004251]
[1745407863937,0.24601237,93462.0,93457.0,0.0004251]
[1745407864341,0.01454085,93459.0,93457.0,0.0004251]
[1745407864561,0.01454085,93457.0,93454.0,0.0004251]
[1745407864768,0.12143099,93455.0,93454.0,0.00048497]
[1745407864935,0.57195099,93455.0,93454.0,0.00048497]
[1745407865137,0.67884113,93455.0,93454.0,0.00048497]
[1745407866014,0.68184113,93455.0,93454.0,0.00048497]
[1745407866551,0.10474085,93454.0,93445.0,0.27163289]
[1745407866753,0.21163099,93454.0,93445.0,0.27163289]
[1745407868025,0.21363099,93454.0,93445.0,0.27163289]
[1745407868251,0.68976253,93454.0,93445.0,0.27163289]
[1745407874542,0.68476253,93454.0,93445.0,0.27163289]
[1745407874726,0.68776253,93454.0,93445.0,0.27163289]
[1745407874872,0.68476253,93454.0,93445.0,0.27163289]
[1745407875071,0.68476253,93454.0,93440.0,0.27163289]
[1745407875258,0.68976253,93454.0,93440.0,0.27163289]
[1745407875675,0.6901248,93454.0,93440.0,0.27163289]
[1745407876967,0.6851248,93454.0,93440.0,0.27163289]
[1745407877193,0.6901248,93454.0,93440.0,0.27163289]
[1745407877400,0.6931248,93454.0,93440.0,0.27163289]
[1745407877855,0.6901248,93454.0,93440.0,0.27163289]
[1745407878197,0.6951248,93454.0,93440.0,0.27163289]
[1745407879395,0.00036227,93453.0,93440.0,0.25419828]
[1745407879564,0.12143099,93441.0,93440.0,0.25419828]
[1745407879800,0.06044085,93440.0,93433.0,0.0004256]
[1745407880016,0.12143099,93434.0,93433.0,0.0004256]
[1745407880224,0.22071099,93434.0,93433.0,0.0004256]
[1745407880436,0.12143099,93434.0,93433.0,0.0004256]
[1745407880650,0.22071099,93434.0,93433.0,0.0004256]
[1745407881505,0.22271099,93434.0,93433.0,0.0004256]
[1745407881745,0.12343099,93434.0,93433.0,0.0004256]
[1745407881979,0.10789014,93434.0,93433.0,0.0004256]
[1745407882258,0.10889014,93434.0,93433.0,0.0004256]
[1745407882505,0.10889014,93434.0,93433.0,0.0474256]
[1745407882506,0.20462319,93434.0,93433.0,0.0474256]
[1745407882726,0.21916404,93434.0,93433.0,0.0474256]
[1745407883177,0.21816404,93434.0,93433.0,0.0474256]
[1745407883422,0.21716404,93434.0,93433.0,0.0474256]
[1745407883646,0.21816404,93434.0,93433.0,0.0474256]
[1745407883832,0.21916404,93434.0,93433.0,0.0474256]
[1745407884054,0.22016404,93434.0,93433.0,0.0474256]
[1745407884295,0.21916404,93434.0,93433.0,0.0474256]
[1745407884523,0.22016404,93434.0,93433.0,0.0474256]
[1745407884804,0.21816404,93434.0,93433.0,0.0474256]
[1745407885011,0.11788404,93434.0,93433.0,0.0014256]
[1745407885348,0.21916404,93434.0,93433.0,0.0014256]
[1745407885572,0.20341774,93434.0,93433.0,0.0014256]
[1745407886444,0.20141774,93434.0,93433.0,0.0014256]
[1745407886568,0.20241774,93434.0,93433.0,0.0014256]
[1745407887444,0.20141774,93434.0,93433.0,0.0014256]
[1745407887664,0.20341774,93434.0,93433.0,0.0014256]
[1745407888123,0.20241774,93434.0,93433.0,0.0014256]
[1745407889047,0.70241774,93434.0,93433.0,0.0014256]
[1745407889448,0.70341774,93434.0,93433.0,0.0014256]
[1745407890960,0.70341774,93434.0,93433.0,0.0004256]
[1745407896081,0.70329774,93434.0,93433.0,0.0004256]
[1745407896900,0.60413774,93434.0,93433.0,0.0004256]
[1745407897112,0.70329774,93434.0,93433.0,0.0004256]
[1745407906100,0.60413774,93434.0,93433.0,0.0004256]
[1745407906409,0.70329774,93434.0,93433.0,0.0004256]
[1745407906782,0.60413774,93434.0,93433.0,0.0004256]
[1745407907484,0.70329774,93434.0,93433.0,0.0004256]
[1745407907922,0.70229774,93434.0,93433.0,0.0004256]
[1745407908124,0.70129774,93434.0,93433.0,0.0004256]
[1745407908295,0.70229774,93434.0,93433.0,0.0004256]
[1745407908485,0.70329774,93434.0,93433.0,0.0004256]
[1745407908685,0.70229774,93434.0,93433.0,0.0004256]
[1745407909137,0.70429774,93434.0,93433.0,0.0004256]
[1745407910797,0.0457,93470.0,93453.0,0.04963773]
[1745407911006,0.10689014,93454.0,93453.0,0.04963773]
[1745407911221,0.20605014,93454.0,93453.0,0.99935373]
[1745407911450,0.20605014,93454.0,93453.0,0.77577873]
[1745407911635,0.10689014,93454.0,93453.0,0.77577873]
[1745407911882,0.08562056,93476.0,93454.0,0.001]
[1745407912128,0.09916,93456.0,93454.0,1.07081753]
[1745407912336,0.08562056,93476.0,93454.0,0.84618973]
[1745407912337,0.09916,93460.0,93454.0,0.84618973]
[1745407912543,0.00304647,93455.0,93454.0,0.84618973]
[1745407914421,0.00304647,93455.0,93454.0,0.58478279]
[1745407914575,4.647e-05,93455.0,93454.0,0.590883]
[1745407914779,0.00104647,93455.0,93454.0,0.002]
[1745407915020,0.00104647,93455.0,93454.0,0.681521]
[1745407915404,0.00104647,93455.0,93454.0,0.476598]
[1745407915761,0.00204647,93455.0,93454.0,0.477598]
[1745407916062,0.00204647,93455.0,93454.0,0.25328146]
[1745407917580,0.00204647,93455.0,93454.0,0.432064]
[1745407921261,0.00204647,93455.0,93454.0,0.001]
[1745407921869,0.00204647,93455.0,93454.0,0.425628]
[1745407922846,0.00204647,93455.0,93454.0,0.404238]
[1745407923715,0.00204647,93455.0,93454.0,0.233883]
[1745407926401,0.00204647,93455.0,93454.0,0.001]
[1745407926584,0.00204647,93455.0,93454.0,0.392437]
[1745407926829,0.00204647,93455.0,93454.0,0.001]
[1745407927022,0.00204647,93455.0,93454.0,0.70225]
[1745407927228,0.00204647,93455.0,93454.0,0.392437]
[1745407927766,0.09621454,93460.0,93454.0,0.392437]
[1745407927960,0.10689014,93460.0,93455.0,0.380232]
[1745407928177,0.099,93459.0,93455.0,0.380232]
[1745407929460,0.1,93459.0,93455.0,0.381232]
[1745407929603,0.1,93459.0,93455.0,0.001]
[1745407930225,0.001,93459.0,93455.0,0.001]
[1745407930602,0.1,93459.0,93455.0,0.001]
[1745407930778,0.001,93459.0,93455.0,0.001]
[1745407930955,0.1,93459.0,93455.0,0.001]
[1745407931446,0.101,93459.0,93455.0,0.003]
[1745407933735,0.01454085,93457.0,93455.0,0.003]
[1745407933964,0.10689014,93456.0,93455.0,0.003]
[1745407934760,0.10689014,93456.0,93449.0,0.53437899]
[1745407934968,0.10689014,93456.0,93455.0,0.001]
[1745407935231,0.10689014,93456.0,93455.0,0.002]
[1745407935232,0.10789014,93456.0,93455.0,0.002]
[1745407935569,0.001,93456.0,93455.0,0.002]
[1745407936012,0.01475171,93471.0,93455.0,0.461446]
[1745407936231,0.099,93463.0,93461.0,0.53437899]
[1745407936397,0.00021086,93471.0,93462.0,1.763306]
[1745407936777,0.00021086,93471.0,93457.0,0.0497]
[1745407936778,0.00021086,93471.0,93463.0,0.00299544]
[1745407936950,0.00021086,93471.0,93464.0,2.216478]
[1745407937150,0.00021086,93471.0,93465.0,0.00299543]
[1745407937371,0.00021086,93471.0,93465.0,1.62311443]
[1745407937612,0.00021086,93471.0,93466.0,1.588086]
[1745407937804,0.00021086,93471.0,93467.0,0.05149533]
[1745407937986,0.00021086,93471.0,93468.0,1.042679]
[1745407938214,0.00121086,93471.0,93469.0,0.87453429]
[1745407938394,0.00221086,93471.0,93470.0,0.712243]
[1745407938545,0.00321086,93471.0,93465.0,0.004]
[1745407938751,0.00321086,93471.0,93466.0,0.33974529]
[1745407939093,0.00221086,93471.0,93467.0,0.33528]
[1745407939297,0.00321086,93471.0,93468.0,0.00699529]
[1745407939524,0.00221086,93471.0,93469.0,0.955442]
[1745407939699,0.00221086,93471.0,93470.0,0.00299529]
[1745407939907,0.00121086,93471.0,93470.0,0.36123629]
[1745407940105,0.00121086,93471.0,93470.0,0.688594]
[1745407940308,0.00221086,93471.0,93469.0,0.964578]
[1745407940508,0.00221086,93471.0,93469.0,0.242071]
[1745407940708,0.00121086,93471.0,93469.0,0.320712]
[1745407940916,0.00221086,93471.0,93470.0,0.003]
[1745407941076,0.00221086,93471.0,93470.0,0.244436]
[1745407941321,0.00021086,93471.0,93470.0,0.115433]
[1745407941525,0.00021086,93471.0,93463.0,0.00299529]
[1745407941723,0.00021086,93471.0,93469.0,0.003]
[1745407941932,0.00021086,93471.0,93470.0,0.339581]
[1745407942393,0.00021086,93471.0,93470.0,0.291334]
[1745407942647,0.00121086,93471.0,93470.0,0.293334]
[1745407942828,0.00121086,93471.0,93470.0,0.29104469]
[1745407943253,0.00121086,93471.0,93463.0,1.02715]
[1745407943479,0.00121086,93471.0,93470.0,0.003]
[1745407943814,0.01454085,93470.0,93462.0,0.23717669]
[1745407944013,0.01254085,93468.0,93462.0,0.23717669]
[1745407944315,0.10689014,93467.0,93462.0,0.23717669]
[1745407945332,0.048,93466.0,93462.0,0.24117669]
[1745407945542,0.10689014,93465.0,93462.0,0.23717669]
[1745407945738,0.10689014,93465.0,93462.0,0.24017669]
[1745407946140,0.01454085,93464.0,93462.0,0.24317669]
[1745407946335,0.12143099,93463.0,93462.0,0.24317669]
[1745407946583,0.12143099,93463.0,93462.0,0.24017669]
[1745407946946,0.12143099,93463.0,93462.0,0.24217669]
[1745407947168,0.12143099,93463.0,93462.0,0.23917669]
[1745407947374,0.12143099,93463.0,93462.0,0.003]
[1745407947787,0.01354085,93462.0,93455.0,0.54263336]
[1745407948022,0.10489014,93461.0,93455.0,0.54263336]
[1745407948699,0.08823832,93461.0,93456.0,0.848619]
[1745407948919,0.08823832,93461.0,93456.0,0.809084]
[1745407949125,0.08823832,93461.0,93456.0,0.499286]
[1745407949531,0.08823832,93461.0,93456.0,0.482045]
[1745407949731,0.01454085,93460.0,93456.0,0.482045]
[1745407949913,0.10689014,93459.0,93456.0,0.482045]
[1745407950134,0.10689014,93459.0,93456.0,0.420013]
[1745407950316,0.10689014,93459.0,93449.0,0.54276816]
[1745407950527,0.10689014,93459.0,93456.0,0.003]
[1745407951057,0.10689014,93459.0,93450.0,0.00299592]
[1745407951261,0.10889014,93459.0,93456.0,0.006]
[1745407951965,0.10789014,93459.0,93457.0,0.448133]
[1745407952183,0.10789014,93459.0,93456.0,0.003]
[1745407952418,0.10889014,93459.0,93457.0,0.338179]
[1745407953314,0.10789014,93459.0,93457.0,0.338179]
[1745407953513,0.10789014,93459.0,93451.0,1.04942]
[1745407953747,0.10889014,93459.0,93451.0,1.04942]
[1745407954212,0.10789014,93459.0,93451.0,1.04942]
[1745407955196,0.10689014,93459.0,93451.0,1.04942]
[1745407955424,0.10889014,93459.0,93457.0,0.002]
[1745407955639,0.10189014,93459.0,93457.0,0.002]
[1745407955874,0.11643099,93459.0,93458.0,0.355299]
[1745407956081,0.11743099,93459.0,93458.0,0.355299]
[1745407956726,0.11443099,93459.0,93458.0,0.355299]
[1745407956931,0.11543099,93459.0,93451.0,0.004]
[1745407957155,0.11643099,93459.0,93458.0,0.001]
[1745407957367,0.11543099,93459.0,93458.0,0.386758]
[1745407957846,0.11643099,93459.0,93458.0,0.358288]
[1745407958289,0.11543099,93459.0,93458.0,0.356288]
[1745407958494,0.11443099,93459.0,93458.0,0.355288]
[1745407958704,0.11443099,93459.0,93458.0,0.002]
[1745407958705,0.11643099,93459.0,93458.0,0.002]
[1745407959134,0.11643099,93459.0,93458.0,0.357277]
[1745407959367,0.11743099,93459.0,93458.0,0.005]
[1745407959833,0.11743099,93459.0,93458.0,0.353277]
[1745407960064,0.11743099,93459.0,93458.0,0.005]
[1745407963357,0.11043099,93459.0,93458.0,0.005]
[1745407970941,0.003,93459.0,93458.0,0.005]
[1745407971142,0.01454085,93465.0,93458.0,0.005]
[1745407971360,0.10689014,93464.0,93458.0,0.005]
[1745407972343,0.09892,93468.0,93458.0,0.005]
[1745407972544,0.10689014,93467.0,93459.0,0.00299563]
[1745407972744,0.001,93465.0,93459.0,0.00299563]
[1745407972993,0.10889014,93465.0,93459.0,0.00299563]
[1745407973186,0.10789014,93465.0,93458.0,0.00599568]
[1745407973406,0.10689014,93465.0,93458.0,0.00499568]
[1745407973555,0.10689014,93465.0,93458.0,0.00799568]
[1745407974060,0.10689014,93465.0,93458.0,0.00499568]
[1745407974328,0.10689014,93465.0,93458.0,0.00799568]
[1745407974532,0.10789014,93465.0,93458.0,0.00799568]
[1745407974749,0.10789014,93465.0,93458.0,0.00599568]
[1745407975154,0.10889014,93465.0,93459.0,0.004]
[1745407975357,0.10889014,93465.0,93458.0,0.00599568]
[1745407975564,0.10989014,93465.0,93458.0,0.00999568]
[1745407976134,0.10889014,93465.0,93458.0,0.00699568]
[1745407976340,0.10989014,93465.0,93459.0,0.003]
[1745407976920,0.10889014,93465.0,93458.0,0.00699568]
[1745407977130,0.10989014,93465.0,93458.0,0.00999568]
[1745407977827,0.10789014,93465.0,93456.0,0.17813644]
[1745407978040,0.10789014,93465.0,93456.0,0.13903008]
[1745407978228,0.10889014,93465.0,93459.0,0.004]
[1745407978406,0.10789014,93465.0,93457.0,0.00299568]
[1745407978605,0.10689014,93465.0,93457.0,0.00299568]
[1745407978839,0.10789014,93465.0,93458.0,0.004]
[1745407979050,0.10889014,93465.0,93459.0,0.003]
[1745407979203,0.10989014,93465.0,93459.0,0.007]
[1745407979499,0.09892,93470.0,93460.0,2.392965]
[1745407979666,0.001,93465.0,93461.0,2.032988]
[1745407979870,0.00021086,93471.0,93462.0,0.00299551]
[1745407980076,0.00021086,93471.0,93462.0,1.36346851]
[1745407980275,0.00021086,93471.0,93463.0,0.00299525]
[1745407980519,0.001,93465.0,93464.0,2.163347]
[1745407981071,0.001,93465.0,93461.0,2.073849]
[1745407981309,0.001,93465.0,93462.0,1.49077324]
[1745407981531,0.002,93465.0,93463.0,1.416284]
[1745407981752,0.001,93465.0,93464.0,0.00299522]
[1745407981974,0.001,93465.0,93464.0,1.119341]
[1745407982112,0.001,93465.0,93464.0,1.149817]
[1745407982337,0.001,93465.0,93464.0,1.103388]
[1745407982551,0.00021086,93471.0,93464.0,1.13570469]
[1745407982862,0.00021086,93471.0,93465.0,0.66217526]
[1745407983063,0.00021086,93471.0,93466.0,0.698968]
[1745407983312,0.00021086,93471.0,93464.0,0.23917669]
[1745407983313,0.0008504,93493.0,93467.0,0.44086209]
[1745407983505,0.0008504,93493.0,93482.0,0.53440932]
[1745407983858,0.0008504,93493.0,93483.0,1.80346764]
[1745407984041,0.0008504,93493.0,93484.0,1.51839763]
[1745407984270,0.0008504,93493.0,93485.0,1.51936063]
[1745407984502,0.0008504,93493.0,93486.0,2.5356556]
[1745407984737,0.00092506,93492.0,93487.0,0.981448]
[1745407984951,0.00092506,93492.0,93488.0,0.76661156]
[1745407985164,0.00192506,93492.0,93489.0,0.808976]
[1745407985379,0.00192506,93492.0,93490.0,0.00299456]
[1745407985583,0.00192506,93492.0,93491.0,0.768844]
[1745407985819,0.00092506,93492.0,93484.0,1.420917]
[1745407986027,0.00092506,93492.0,93487.0,0.001]
[1745407986237,0.00092506,93492.0,93488.0,0.99553655]
[1745407986451,0.00292506,93492.0,93489.0,0.854756]
[1745407986670,0.00292506,93492.0,93490.0,0.00299456]
[1745407986890,0.00092506,93492.0,93491.0,0.904716]
[1745407987132,0.00192506,93492.0,93484.0,1.140992]
[1745407987372,0.00192506,93492.0,93485.0,1.28888157]
[1745407987591,0.00192506,93492.0,93486.0,1.212855]
[1745407987869,0.00192506,93492.0,93487.0,0.00299457]
[1745407988046,0.00192506,93492.0,93485.0,0.56358656]
[1745407988272,0.00192506,93492.0,93486.0,0.754516]
[1745407988528,0.00192506,93492.0,93487.0,0.00299457]
[1745407988746,0.00092506,93492.0,93488.0,0.857626]
[1745407988916,0.00092506,93492.0,93489.0,0.85532457]
[1745407989136,0.00092506,93492.0,93490.0,0.816368]
[1745407989299,0.00092506,93492.0,93491.0,0.00299457]
[1745407989500,0.00092506,93492.0,93491.0,0.81421]
[1745407989705,0.00192506,93492.0,93488.0,0.881897]
[1745407989978,0.00192506,93492.0,93489.0,0.00299457]
[1745407990168,0.00192506,93492.0,93490.0,1.04327]
[1745407990338,0.00392506,93492.0,93491.0,0.00299457]